fUSD/lending_fUSD_20260508
["ID","MTS","AMOUNT","RATE_DAILY","PERIOD"]
[421800394,1778175047000,-329.39896412,0.00037174,2]
[421800405,1778175047000,-163.0,0.00037227,11]
[421800423,1778175047000,-182.92972981,0.00037351,2]
[421800409,1778175047000,-4122.0,0.00037232,15]
[421800427,1778175047000,-2455.55956113,0.00037398,2]
[421800411,1778175047000,-185.66249107,0.0003726,5]
[421800385,1778175047000,-632448.5646896,0.00037167,2]
[421800450,1778175047000,-200.0,0.00037573,6]
[421800407,1778175047000,-2306.0,0.00037227,11]
[421800456,1778175047000,-222.62,0.000376,30]
[421800498,1778175047000,-152.0,0.00037949,8]
[421800499,1778175047000,-2500.0,0.0003795,70]
[421800501,1778175047000,-168.14219551,0.00037951,2]
[421800496,1778175047000,-842.0,0.000379,120]
[421800522,1778175047000,-309.11524289,0.00038033,2]
[421800502,1778175047000,-550.06273704,0.0003796,2]
[421800504,1778175047000,-2000.0,0.00038,38]
[421800505,1778175047000,-31109.82938,0.00038,100]
[421800506,1778175047000,-158.0,0.00038,3]
[421800503,1778175047000,-50000.0,0.00038,34]
[421800508,1778175047000,-2500.0,0.00038,70]
[421800513,1778175047000,-639.5250961,0.00038,2]
[421800495,1778175047000,-950.0,0.000379,120]
[421800509,1778175047000,-10000.0,0.00038,7]
[421800511,1778175047000,-1506.82634456,0.00038,120]
[421800512,1778175047000,-2000.0,0.00038,120]
[421800510,1778175047000,-471.00555411,0.00038,2]
[421800516,1778175047000,-288.12,0.00038,30]
[421800517,1778175047000,-2000.0,0.00038,7]
[421800515,1778175047000,-1883.71173096,0.00038,120]
[421800514,1778175047000,-2934.45225555,0.00038,120]
[421800518,1778175047000,-4118.0,0.00038002,15]
[421800520,1778175047000,-703.34046847,0.00038028,2]
[421800521,1778175047000,-310.0,0.00038031,48]
[421800519,1778175047000,-550.06273704,0.00038014,2]
[421800451,1778175047000,-200.0,0.00037574,6]
[421800507,1778175047000,-10000.0,0.00038,15]
[421800497,1778175047000,-150.0,0.00037938,7]
[421800523,1778175047000,-463.14959287,0.00038033,2]
[421800494,1778175047000,-950.0,0.000379,120]
[421800490,1778175047000,-150.39774926,0.00037889,7]
[421800459,1778175047000,-4118.0,0.00037611,15]
[421800461,1778175047000,-539.96995901,0.00037656,2]
[421800463,1778175047000,-150.0,0.0003768,7]
[421800467,1778175047000,-503.0,0.0003771,13]
[421800460,1778175047000,-188.18596581,0.00037626,120]
[421800469,1778175047000,-2306.0,0.00037731,11]
[421800474,1778175047000,-2306.0,0.00037731,11]
[421800473,1778175047000,-2306.0,0.00037731,11]
[421800472,1778175047000,-2306.0,0.00037731,11]
[421800471,1778175047000,-2306.0,0.00037731,11]
[421800476,1778175047000,-151.0,0.00037731,7]
[421800485,1778175047000,-2306.0,0.00037867,11]
[421800465,1778175047000,-150.0,0.00037694,2]
[421800479,1778175047000,-4118.0,0.00037806,15]
[421800475,1778175047000,-151.0,0.00037731,7]
[421800493,1778175047000,-1203.15864,0.000379,120]
[421800486,1778175047000,-539.96995901,0.0003787,2]
[421800484,1778175047000,-539.96995901,0.00037867,2]
[421800482,1778175047000,-150.0,0.00037834,2]
[421800488,1778175047000,-2306.0,0.00037877,11]
[421800477,1778175047000,-2306.0,0.00037799,11]
[421800483,1778175047000,-163.0,0.00037843,11]
[421800478,1778175047000,-163.0,0.00037804,11]
[421800480,1778175047000,-211.39,0.00037808,60]
[421800481,1778175047000,-4122.0,0.0003783,15]
[421800492,1778175047000,-539.96995901,0.00037893,2]
[421800550,1778175048000,-300.0,0.00038033,2]
[421800555,1778175048000,-300.0,0.00038033,2]
[421800549,1778175048000,-300.0,0.00038033,2]
[421800560,1778175048000,-300.0,0.00038033,2]
[421800551,1778175048000,-300.0,0.00038033,2]
[421800558,1778175048000,-1092.9925252,0.00038033,2]
[421800556,1778175048000,-300.8782727,0.00038033,2]
[421800552,1778175048000,-300.0,0.00038033,2]
[421800547,1778175048000,-451.20756317,0.00038033,2]
[421800563,1778175048000,-491.92676023,0.00038033,2]
[421800557,1778175048000,-300.0,0.00038033,2]
[421800554,1778175048000,-309.36726268,0.00038033,2]
[421800559,1778175048000,-300.0,0.00038033,2]
[421800561,1778175048000,-487.46161973,0.00038033,2]
[421800564,1778175048000,-300.0,0.00038033,2]
[421800562,1778175048000,-300.0,0.00038033,2]
[421800572,1778175048000,-300.0,0.00038033,2]
[421800546,1778175048000,-370.10410288,0.00038033,2]
[421800571,1778175048000,-309.1764897,0.00038033,2]
[421800553,1778175048000,-483.34199355,0.00038033,2]
[421800548,1778175048000,-300.0,0.00038033,2]
[421800531,1778175048000,-1065.27537832,0.00038033,2]
[421800541,1778175048000,-300.0,0.00038033,2]
[421800568,1778175048000,-530.45437532,0.00038033,2]
[421800524,1778175048000,-300.0,0.00038033,2]
[421800525,1778175048000,-300.0,0.00038033,2]
[421800527,1778175048000,-300.0,0.00038033,2]
[421800528,1778175048000,-300.0,0.00038033,2]
[421800529,1778175048000,-300.0,0.00038033,2]
[421800526,1778175048000,-309.36726268,0.00038033,2]
[421800530,1778175048000,-300.0,0.00038033,2]
[421800534,1778175048000,-412.80313747,0.00038033,2]
[421800542,1778175048000,-310.41737646,0.00038033,2]
[421800536,1778175048000,-300.0,0.00038033,2]
[421800532,1778175048000,-892.04454699,0.00038033,2]
[421800533,1778175048000,-301.32846068,0.00038033,2]
[421800537,1778175048000,-852.88686294,0.00038033,2]
[421800539,1778175048000,-309.11524289,0.00038033,2]
[421800540,1778175048000,-863.09416045,0.00038033,2]
[421800544,1778175048000,-463.14959287,0.00038033,2]
[421800543,1778175048000,-300.0,0.00038033,2]
[421800538,1778175048000,-300.0,0.00038033,2]
[421800545,1778175048000,-481.27140702,0.00038033,2]
[421800535,1778175048000,-300.0,0.00038033,2]
[421800567,1778175048000,-526.92962811,0.00038033,2]
[421800575,1778175048000,-301.94724483,0.00038033,2]
[421800566,1778175048000,-300.0,0.00038033,2]
[421800598,1778175048000,-300.0,0.00038033,2]
[421800597,1778175048000,-300.71838842,0.00038033,2]
[421800596,1778175048000,-300.0,0.00038033,2]
[421800595,1778175048000,-300.0,0.00038033,2]
[421800600,1778175048000,-483.34199355,0.00038033,2]
[421800601,1778175048000,-309.36726268,0.00038033,2]
[421800604,1778175048000,-1092.9925252,0.00038033,2]
[421800602,1778175048000,-300.0,0.00038033,2]
[421800606,1778175048000,-300.0,0.00038033,2]
[421800599,1778175048000,-300.0,0.00038033,2]
[421800603,1778175048000,-300.0,0.00038033,2]
[421800610,1778175048000,-300.0,0.00038033,2]
[421800609,1778175048000,-300.0,0.00038033,2]
[421800611,1778175048000,-300.0,0.00038033,2]
[421800608,1778175048000,-597.43958153,0.00038033,2]
[421800612,1778175048000,-491.92676023,0.00038033,2]
[421800613,1778175048000,-342.94953916,0.00038033,2]
[421800614,1778175048000,-603.53328922,0.00038033,2]
[421800615,1778175048000,-300.0,0.00038033,2]
[421800573,1778175048000,-301.32846068,0.00038033,2]
[421800607,1778175048000,-300.84008544,0.00038033,2]
[421800594,1778175048000,-300.0,0.00038033,2]
[421800605,1778175048000,-490.44419615,0.00038033,2]
[421800592,1778175048000,-481.27140702,0.00038033,2]
[421800593,1778175048000,-451.20756317,0.00038033,2]
[421800570,1778175048000,-892.04454699,0.00038033,2]
[421800569,1778175048000,-1065.27537832,0.00038033,2]
[421800576,1778175048000,-300.0,0.00038033,2]
[421800577,1778175048000,-300.0,0.00038033,2]
[421800574,1778175048000,-300.0,0.00038033,2]
[421800578,1778175048000,-852.88686294,0.00038033,2]
[421800580,1778175048000,-1793.64716308,0.00038033,2]
[421800579,1778175048000,-300.0,0.00038033,2]
[421800582,1778175048000,-526.03810806,0.00038033,2]
[421800565,1778175048000,-300.0,0.00038033,2]
[421800590,1778175048000,-300.0,0.00038033,2]
[421800584,1778175048000,-309.11524289,0.00038033,2]
[421800583,1778175048000,-1145.41934579,0.00038033,2]
[421800585,1778175048000,-300.0,0.00038033,2]
[421800587,1778175048000,-300.0,0.00038033,2]
[421800586,1778175048000,-863.09416045,0.00038033,2]
[421800588,1778175048000,-300.0,0.00038033,2]
[421800589,1778175048000,-310.41737646,0.00038033,2]
[421800591,1778175048000,-463.14959287,0.00038033,2]
[421800581,1778175048000,-343.45478996,0.00038033,2]
[421800649,1778175049000,-300.0,0.00038033,2]
[421800647,1778175049000,-301.12522993,0.00038033,2]
[421800646,1778175049000,-301.11222576,0.00038033,2]
[421800645,1778175049000,-451.20756317,0.00038033,2]
[421800638,1778175049000,-325.17968677,0.00038033,2]
[421800641,1778175049000,-300.0,0.00038033,2]
[421800644,1778175049000,-481.27140702,0.00038033,2]
[421800651,1778175049000,-483.34199355,0.00038033,2]
[421800643,1778175049000,-300.0,0.00038033,2]
[421800642,1778175049000,-463.14959287,0.00038033,2]
[421800650,1778175049000,-300.0,0.00038033,2]
[421800656,1778175049000,-300.74873721,0.00038033,2]
[421800652,1778175049000,-309.36726268,0.00038033,2]
[421800653,1778175049000,-300.0,0.00038033,2]
[421800655,1778175049000,-300.0,0.00038033,2]
[421800657,1778175049000,-543.20254788,0.00038033,2]
[421800658,1778175049000,-300.0,0.00038033,2]
[421800659,1778175049000,-491.92676023,0.00038033,2]
[421800660,1778175049000,-300.0,0.00038033,2]
[421800654,1778175049000,-1092.9925252,0.00038033,2]
[421800661,1778175049000,-300.0,0.00038033,2]
[421800648,1778175049000,-309.48280054,0.00038033,2]
[421800639,1778175049000,-300.0,0.00038033,2]
[421800616,1778175049000,-300.0,0.00038033,2]
[421800636,1778175049000,-396.13518891,0.00038033,2]
[421800663,1778175049000,-300.0,0.00038033,2]
[421800617,1778175049000,-526.92962811,0.00038033,2]
[421800622,1778175049000,-300.0,0.00038033,2]
[421800626,1778175049000,-300.0,0.00038033,2]
[421800619,1778175049000,-892.04454699,0.00038033,2]
[421800618,1778175049000,-1065.27537832,0.00038033,2]
[421800623,1778175049000,-301.32846068,0.00038033,2]
[421800625,1778175049000,-300.10527974,0.00038033,2]
[421800620,1778175049000,-309.1764897,0.00038033,2]
[421800621,1778175049000,-724.93361989,0.00038033,2]
[421800624,1778175049000,-300.0,0.00038033,2]
[421800627,1778175049000,-300.0,0.00038033,2]
[421800628,1778175049000,-852.88686294,0.00038033,2]
[421800629,1778175049000,-300.0,0.00038033,2]
[421800631,1778175049000,-300.77822011,0.00038033,2]
[421800632,1778175049000,-343.45478996,0.00038033,2]
[421800633,1778175049000,-739.04552228,0.00038033,2]
[421800634,1778175049000,-1145.41934579,0.00038033,2]
[421800630,1778175049000,-1793.64716308,0.00038033,2]
[421800635,1778175049000,-309.11524289,0.00038033,2]
[421800637,1778175049000,-863.09416045,0.00038033,2]
[421800640,1778175049000,-310.41737646,0.00038033,2]
[421800662,1778175049000,-603.53328922,0.00038033,2]
[421800711,1778175049000,-300.85242038,0.00038033,2]
[421800665,1778175049000,-1065.27537832,0.00038033,2]
[421800689,1778175049000,-451.06951105,0.00038033,2]
[421800691,1778175049000,-309.36726268,0.00038033,2]
[421800693,1778175049000,-1092.67461164,0.00038033,2]
[421800694,1778175049000,-300.0,0.00038033,2]
[421800705,1778175049000,-724.93361989,0.00038033,2]
[421800695,1778175049000,-301.07705346,0.00038033,2]
[421800697,1778175049000,-300.0,0.00038033,2]
[421800699,1778175049000,-603.53328922,0.00038033,2]
[421800698,1778175049000,-300.0,0.00038033,2]
[421800700,1778175049000,-300.0,0.00038033,2]
[421800696,1778175049000,-491.92676023,0.00038033,2]
[421800710,1778175049000,-852.88686294,0.00038033,2]
[421800702,1778175049000,-892.04454699,0.00038033,2]
[421800704,1778175049000,-310.52086143,0.00038033,2]
[421800703,1778175049000,-1065.27537832,0.00038033,2]
[421800706,1778175049000,-300.10527974,0.00038033,2]
[421800712,1778175049000,-1793.64716308,0.00038033,2]
[421800707,1778175049000,-386.56873878,0.00038033,2]
[421800709,1778175049000,-301.04713146,0.00038033,2]
[421800708,1778175049000,-300.0,0.00038033,2]
[421800667,1778175049000,-309.1764897,0.00038033,2]
[421800692,1778175049000,-388.59635702,0.00038033,2]
[421800690,1778175049000,-483.34199355,0.00038033,2]
[421800701,1778175049000,-526.92962811,0.00038033,2]
[421800688,1778175049000,-481.27140702,0.00038033,2]
[421800664,1778175049000,-526.92962811,0.00038033,2]
[421800685,1778175049000,-300.0,0.00038033,2]
[421800668,1778175049000,-724.93361989,0.00038033,2]
[421800666,1778175049000,-892.04454699,0.00038033,2]
[421800669,1778175049000,-300.74209312,0.00038033,2]
[421800670,1778175049000,-302.57594501,0.00038033,2]
[421800673,1778175049000,-300.0,0.00038033,2]
[421800676,1778175049000,-852.88686294,0.00038033,2]
[421800674,1778175049000,-509.13529131,0.00038033,2]
[421800675,1778175049000,-300.0,0.00038033,2]
[421800671,1778175049000,-300.0,0.00038033,2]
[421800677,1778175049000,-300.0,0.00038033,2]
[421800679,1778175049000,-343.45478996,0.00038033,2]
[421800680,1778175049000,-1145.41934579,0.00038033,2]
[421800682,1778175049000,-1046.4891715,0.00038033,2]
[421800678,1778175049000,-1793.64716308,0.00038033,2]
[421800681,1778175049000,-310.28962553,0.00038033,2]
[421800684,1778175049000,-310.41737646,0.00038033,2]
[421800683,1778175049000,-537.93966197,0.00038033,2]
[421800672,1778175049000,-300.10527974,0.00038033,2]
[421800686,1778175049000,-463.14959287,0.00038033,2]
[421800687,1778175049000,-300.0,0.00038033,2]
[421800747,1778175050000,-300.0,0.00038033,2]
[421800746,1778175050000,-1150.15749245,0.00038033,2]
[421800745,1778175050000,-1793.64716308,0.00038033,2]
[421800744,1778175050000,-895.21544353,0.00038033,2]
[421800743,1778175050000,-300.0,0.00038033,2]
[421800751,1778175050000,-300.0,0.00038033,2]
[421800752,1778175050000,-1800.19961794,0.00038033,2]
[421800742,1778175050000,-603.53328922,0.00038033,2]
[421800748,1778175050000,-430.21959614,0.00038033,2]
[421800753,1778175050000,-300.0,0.00038033,2]
[421800750,1778175050000,-1793.64716308,0.00038033,2]
[421800755,1778175050000,-300.91068077,0.00038033,2]
[421800765,1778175050000,-300.0,0.00038033,2]
[421800756,1778175050000,-528.82228309,0.00038033,2]
[421800757,1778175050000,-300.0,0.00038033,2]
[421800761,1778175050000,-528.82228309,0.00038033,2]
[421800760,1778175050000,-527.38463611,0.00038033,2]
[421800758,1778175050000,-528.82228309,0.00038033,2]
[421800759,1778175050000,-300.0,0.00038033,2]
[421800763,1778175050000,-301.03431884,0.00038033,2]
[421800762,1778175050000,-570.42491687,0.00038033,2]
[421800764,1778175050000,-300.0,0.00038033,2]
[421800769,1778175050000,-191.216409,0.00038037,120]
[421800771,1778175050000,-187.5,0.00038037,120]
[421800770,1778175050000,-300.4101433,0.00038037,120]
[421800754,1778175050000,-300.0,0.00038033,2]
[421800749,1778175050000,-605.68855239,0.00038033,2]
[421800722,1778175050000,-502.40292349,0.00038033,2]
[421800739,1778175050000,-462.66698347,0.00038033,2]
[421800766,1778175050000,-333.73025773,0.00038033,2]
[421800715,1778175050000,-311.6413155,0.00038033,2]
[421800713,1778175050000,-343.45478996,0.00038033,2]
[421800714,1778175050000,-1145.41934579,0.00038033,2]
[421800716,1778175050000,-300.0,0.00038033,2]
[421800717,1778175050000,-463.14959287,0.00038033,2]
[421800720,1778175050000,-485.22237349,0.00038033,2]
[421800723,1778175050000,-493.83007433,0.00038033,2]
[421800724,1778175050000,-405.22366242,0.00038033,2]
[421800721,1778175050000,-309.36726268,0.00038033,2]
[421800729,1778175050000,-733.92427235,0.00038033,2]
[421800718,1778175050000,-300.0,0.00038033,2]
[421800741,1778175050000,-516.5793453,0.00038033,2]
[421800719,1778175050000,-483.66097042,0.00038033,2]
[421800726,1778175050000,-603.53328922,0.00038033,2]
[421800727,1778175050000,-300.0,0.00038033,2]
[421800725,1778175050000,-443.41348484,0.00038033,2]
[421800732,1778175050000,-401.60270356,0.00038033,2]
[421800733,1778175050000,-300.0,0.00038033,2]
[421800734,1778175050000,-856.22390287,0.00038033,2]
[421800731,1778175050000,-727.83218226,0.00038033,2]
[421800730,1778175050000,-892.04454699,0.00038033,2]
[421800736,1778175050000,-343.45478996,0.00038033,2]
[421800737,1778175050000,-1145.41934579,0.00038033,2]
[421800735,1778175050000,-1793.64716308,0.00038033,2]
[421800738,1778175050000,-300.0,0.00038033,2]
[421800728,1778175050000,-528.95707472,0.00038033,2]
[421800767,1778175050000,-250.0,0.00038034,7]
[421800740,1778175050000,-300.0,0.00038033,2]
[421800772,1778175050000,-261.2811878,0.00038037,120]
[421800806,1778175050000,-2703.1948,0.00038351,2]
[421800803,1778175050000,-880.38313048,0.00038329,120]
[421800804,1778175050000,-387.29507479,0.00038329,120]
[421800800,1778175050000,-167.22,0.000383,7]
[421800810,1778175050000,-7331.84712835,0.00038356,30]
[421800809,1778175050000,-153.02629419,0.00038356,60]
[421800807,1778175050000,-402.1319,0.00038351,2]
[421800808,1778175050000,-802.2302,0.00038351,2]
[421800812,1778175050000,-466.39895249,0.00038356,2]
[421800811,1778175050000,-5360.6298787,0.00038356,30]
[421800822,1778175050000,-156.15270631,0.0003836,120]
[421800821,1778175050000,-169.33728848,0.0003836,120]
[421800802,1778175050000,-550.06273704,0.00038315,2]
[421800815,1778175050000,-150.0,0.00038356,5]
[421800818,1778175050000,-150.64456526,0.0003836,120]
[421800813,1778175050000,-511.55,0.00038356,30]
[421800820,1778175050000,-150.92541513,0.0003836,120]
[421800817,1778175050000,-150.92541517,0.0003836,120]
[421800816,1778175050000,-250.0,0.00038359,5]
[421800823,1778175050000,-350.0,0.00038362,5]
[421800824,1778175050000,-450.0,0.00038364,5]
[421800828,1778175050000,-163.0,0.00038371,11]
[421800826,1778175050000,-550.06273704,0.00038368,2]
[421800827,1778175050000,-650.0,0.0003837,5]
[421800825,1778175050000,-550.0,0.00038367,5]
[421800768,1778175050000,-203.3868328,0.00038037,120]
[421800819,1778175050000,-184.50303424,0.0003836,120]
[421800805,1778175050000,-396.03631773,0.0003835,120]
[421800814,1778175050000,-786.64,0.00038356,120]
[421800799,1778175050000,-850.04,0.000383,14]
[421800801,1778175050000,-10000.0,0.00038304,2]
[421800773,1778175050000,-550.06273704,0.00038041,2]
[421800774,1778175050000,-2306.0,0.00038051,11]
[421800775,1778175050000,-539.96995901,0.00038075,2]
[421800782,1778175050000,-163.0,0.00038124,11]
[421800777,1778175050000,-10684.27,0.000381,7]
[421800776,1778175050000,-16803.05649225,0.000381,33]
[421800784,1778175050000,-4122.0,0.0003813,15]
[421800779,1778175050000,-160.0,0.000381,67]
[421800785,1778175050000,-539.96995901,0.00038134,2]
[421800786,1778175050000,-550.06273704,0.00038155,2]
[421800778,1778175050000,-160.0,0.000381,67]
[421800780,1778175050000,-353.0,0.00038111,2]
[421800783,1778175050000,-151.0,0.00038125,30]
[421800794,1778175050000,-2306.0,0.00038245,11]
[421800781,1778175050000,-163.0,0.00038119,11]
[421800793,1778175050000,-163.0,0.00038226,11]
[421800791,1778175050000,-320.24,0.000382,15]
[421800792,1778175050000,-353.0,0.00038203,2]
[421800789,1778175050000,-2306.0,0.00038197,11]
[421800788,1778175050000,-150.0,0.00038196,7]
[421800790,1778175050000,-4118.0,0.00038198,15]
[421800795,1778175050000,-539.96995901,0.0003826,2]
[421800797,1778175050000,-821.92,0.00038276,60]
[421800796,1778175050000,-3384.94,0.00038276,60]
[421800787,1778175050000,-2306.0,0.00038168,11]
[421800798,1778175050000,-222.62,0.000383,30]
[421800875,1778175051000,-6044.0,0.00038768,2]
[421800866,1778175051000,-202.66399536,0.00038712,7]
[421800872,1778175051000,-150.0,0.0003875,120]
[421800865,1778175051000,-2112.22,0.000387,2]
[421800864,1778175051000,-3371.34,0.000387,2]
[421800871,1778175051000,-4122.0,0.00038728,30]
[421800861,1778175051000,-490.0,0.00038663,90]
[421800862,1778175051000,-503.0,0.00038671,14]
[421800868,1778175051000,-154.3724558,0.00038712,7]
[421800870,1778175051000,-181.21259689,0.00038712,7]
[421800867,1778175051000,-176.58888063,0.00038712,7]
[421800873,1778175051000,-150.0,0.0003875,120]
[421800863,1778175051000,-11149.37,0.000387,2]
[421800874,1778175051000,-2703.1948,0.00038762,2]
[421800886,1778175051000,-223.91,0.00038879,120]
[421800877,1778175051000,-10684.27,0.000388,7]
[421800879,1778175051000,-2306.0,0.00038808,11]
[421800883,1778175051000,-2306.0,0.00038866,11]
[421800878,1778175051000,-2306.0,0.00038803,11]
[421800881,1778175051000,-750.01659005,0.00038834,2]
[421800880,1778175051000,-511.603942,0.0003881,120]
[421800882,1778175051000,-380.23,0.00038857,2]
[421800885,1778175051000,-223.91,0.00038879,120]
[421800897,1778175051000,-3825517.9357625,0.0003888,2]
[421800895,1778175051000,-314.14399847,0.0003888,120]
[421800896,1778175051000,-232961.80048464,0.0003888,49]
[421800884,1778175051000,-150.0,0.00038877,30]
[421800869,1778175051000,-271.31136747,0.00038712,7]
[421800876,1778175051000,-4118.0,0.00038785,30]
[421800860,1778175051000,-2306.0,0.00038655,11]
[421800831,1778175051000,-433.54703849,0.000384,10]
[421800855,1778175051000,-333.0,0.0003863,120]
[421800832,1778175051000,-4122.0,0.00038429,30]
[421800893,1778175051000,-223.91,0.00038879,120]
[421800834,1778175051000,-2306.0,0.00038483,11]
[421800833,1778175051000,-150.0,0.00038454,7]
[421800829,1778175051000,-698.36594889,0.00038373,5]
[421800846,1778175051000,-2306.0,0.00038565,11]
[421800836,1778175051000,-2703.1948,0.00038488,2]
[421800835,1778175051000,-163.0,0.00038488,11]
[421800838,1778175051000,-14178.9231,0.000385,120]
[421800839,1778175051000,-2500.0,0.000385,90]
[421800837,1778175051000,-31163.57743411,0.000385,2]
[421800840,1778175051000,-1883.14,0.000385,120]
[421800843,1778175051000,-225.0,0.00038533,2]
[421800853,1778175051000,-2703.1948,0.00038625,2]
[421800842,1778175051000,-150.0,0.000385,120]
[421800845,1778175051000,-163.0,0.00038546,11]
[421800844,1778175051000,-152.0,0.00038538,120]
[421800847,1778175051000,-4118.0,0.00038589,30]
[421800849,1778175051000,-22377.27,0.000386,2]
[421800851,1778175051000,-340.0,0.00038614,2]
[421800850,1778175051000,-17283.26,0.000386,2]
[421800848,1778175051000,-438.3867085,0.0003859,2]
[421800859,1778175051000,-2000.0,0.00038652,120]
[421800857,1778175051000,-150.64456526,0.00038634,120]
[421800856,1778175051000,-150.92541517,0.00038634,120]
[421800852,1778175051000,-340.0,0.00038614,2]
[421800858,1778175051000,-2306.0,0.00038646,11]
[421800854,1778175051000,-639.78810317,0.00038629,2]
[421800841,1778175051000,-288.12,0.000385,30]
[421800887,1778175051000,-223.91,0.00038879,120]
[421800830,1778175051000,-4118.0,0.00038394,30]
[421800890,1778175051000,-223.91,0.00038879,120]
[421800924,1778175051000,-151.0,0.0003888,30]
[421800927,1778175051000,-151.0,0.0003888,7]
[421800926,1778175051000,-314.055662,0.0003888,30]
[421800934,1778175051000,-314.055662,0.0003888,30]
[421800935,1778175051000,-151.0,0.0003888,30]
[421800932,1778175051000,-314.055662,0.0003888,30]
[421800936,1778175051000,-151.0,0.0003888,30]
[421800931,1778175051000,-314.055662,0.0003888,30]
[421800933,1778175051000,-314.055662,0.0003888,30]
[421800930,1778175051000,-314.055662,0.0003888,30]
[421800925,1778175051000,-314.055662,0.0003888,30]
[421800938,1778175051000,-151.0,0.0003888,30]
[421800946,1778175051000,-331.199706,0.0003888,30]
[421800928,1778175051000,-151.0,0.0003888,7]
[421800949,1778175051000,-331.199706,0.0003888,30]
[421800948,1778175051000,-331.199706,0.0003888,30]
[421800937,1778175051000,-151.0,0.0003888,30]
[421800940,1778175051000,-151.0,0.0003888,30]
[421800941,1778175051000,-151.0,0.0003888,28]
[421800944,1778175051000,-331.199706,0.0003888,30]
[421800943,1778175051000,-331.199706,0.0003888,30]
[421800942,1778175051000,-151.0,0.0003888,28]
[421800939,1778175051000,-151.0,0.0003888,30]
[421800945,1778175051000,-331.199706,0.0003888,30]
[421800950,1778175051000,-331.199706,0.0003888,30]
[421800952,1778175051000,-151.0,0.0003888,30]
[421800953,1778175051000,-185.757503,0.0003888,30]
[421800951,1778175051000,-151.0,0.0003888,30]
[421800947,1778175051000,-331.199706,0.0003888,30]
[421800929,1778175051000,-314.055662,0.0003888,30]
[421800954,1778175051000,-185.757503,0.0003888,30]
[421800916,1778175051000,-163.0481,0.0003888,30]
[421800921,1778175051000,-163.0481,0.0003888,30]
[421800892,1778175051000,-223.91,0.00038879,120]
[421800891,1778175051000,-223.91,0.00038879,120]
[421800888,1778175051000,-223.91,0.00038879,120]
[421800894,1778175051000,-223.91,0.00038879,120]
[421800910,1778175051000,-151.0,0.0003888,30]
[421800898,1778175051000,-1661.31893764,0.0003888,2]
[421800909,1778175051000,-151.0,0.0003888,30]
[421800900,1778175051000,-172.171722,0.0003888,30]
[421800899,1778175051000,-151.0,0.0003888,30]
[421800905,1778175051000,-151.0,0.0003888,30]
[421800903,1778175051000,-151.0,0.0003888,30]
[421800901,1778175051000,-299.892273,0.0003888,30]
[421800906,1778175051000,-151.0,0.0003888,30]
[421800889,1778175051000,-223.91,0.00038879,120]
[421800904,1778175051000,-151.0,0.0003888,30]
[421800907,1778175051000,-151.0,0.0003888,30]
[421800920,1778175051000,-163.0481,0.0003888,30]
[421800919,1778175051000,-163.0481,0.0003888,30]
[421800918,1778175051000,-163.0481,0.0003888,30]
[421800917,1778175051000,-163.0481,0.0003888,30]
[421800923,1778175051000,-151.0,0.0003888,30]
[421800915,1778175051000,-163.0481,0.0003888,30]
[421800911,1778175051000,-151.0,0.0003888,30]
[421800914,1778175051000,-151.0,0.0003888,30]
[421800922,1778175051000,-163.0481,0.0003888,30]
[421800912,1778175051000,-151.0,0.0003888,30]
[421800902,1778175051000,-151.0,0.0003888,30]
[421800908,1778175051000,-151.0,0.0003888,30]
[421800913,1778175051000,-151.0,0.0003888,30]
[421800997,1778175052000,-150.0,0.00039024,30]
[421800990,1778175052000,-222.62,0.00039,30]